fUST/lending_fUST_20250407
["ID","MTS","AMOUNT","RATE_DAILY","PERIOD"]
[357394288,1744041048536,-500.0,0.00027671,7]
[357394289,1744041048545,-500.0,0.00027671,7]
[357394290,1744041048555,-500.0,0.00027671,7]
[357394291,1744041048565,-500.0,0.00027671,7]
[357394292,1744041048575,-631.13,0.00027671,7]
[357394293,1744041048584,-500.0,0.00027671,7]
[357394294,1744041048595,-500.0,0.00027671,7]
[357394295,1744041048604,-1304.75,0.00027671,7]
[357394296,1744041048614,-500.0,0.00027671,7]
[357394297,1744041048624,-500.0,0.00027671,7]
[357394298,1744041048634,-500.0,0.00027671,7]
[357394299,1744041048644,-500.0,0.00027671,7]
[357394300,1744041048654,-500.0,0.00027671,7]
[357394301,1744041048664,-500.0,0.00027671,7]
[357394302,1744041048675,-500.0,0.00027671,7]
[357394303,1744041048686,-500.0,0.00027671,7]
[357394304,1744041048697,-500.0,0.00027671,7]
[357394305,1744041048707,-500.0,0.00027671,7]
[357394306,1744041048717,-500.0,0.00027671,7]
[357394307,1744041048727,-500.0,0.00027671,7]
[357394308,1744041048736,-703.42,0.00027671,7]
[357394309,1744041048746,-500.0,0.00027671,7]
[357394310,1744041048756,-965.11,0.00027671,7]
[357394311,1744041048766,-500.0,0.00027671,7]
[357394312,1744041048776,-500.0,0.00027671,7]
[357394313,1744041048785,-500.0,0.00027671,7]
[357394314,1744041048795,-500.0,0.00027671,7]
[357394315,1744041048805,-500.0,0.00027671,7]
[357394316,1744041048815,-1327.39,0.00027671,7]
[357394317,1744041048824,-500.0,0.00027671,7]
[357394318,1744041048834,-858.71,0.00027671,7]
[357394319,1744041048844,-500.0,0.00027671,7]
[357394320,1744041048854,-500.0,0.00027671,7]
[357394321,1744041048865,-969.42,0.00027671,7]
[357394322,1744041048875,-500.0,0.00027671,7]
[357394323,1744041048885,-500.0,0.00027671,7]
[357394324,1744041048896,-500.0,0.00027671,7]
[357394325,1744041048906,-500.0,0.00027671,7]
[357394326,1744041048916,-613.02,0.00027671,7]
[357394327,1744041048926,-502.07933501,0.00027671,7]
[357394328,1744041048940,-500.0,0.00027671,7]
[357394329,1744041048949,-500.0,0.00027671,7]
[357394330,1744041048959,-500.0,0.00027671,7]
[357394331,1744041048970,-501.36797695,0.00027671,7]
[357394332,1744041048980,-500.0,0.00027671,7]
[357394333,1744041048990,-500.0,0.00027671,7]
[357394334,1744041049001,-500.0,0.00027671,7]
[357394335,1744041049012,-503.19015054,0.00027671,7]
[357394336,1744041049022,-500.0,0.00027671,7]
[357394337,1744041049032,-501.23381039,0.00027671,7]
[357394338,1744041049042,-700.7,0.00027671,7]
[357394339,1744041049051,-500.0,0.00027671,7]
[357394340,1744041049061,-500.0,0.00027671,7]
[357394341,1744041049071,-500.0,0.00027671,7]
[357394342,1744041049081,-500.0,0.00027671,7]
[357394343,1744041049090,-500.0,0.00027671,7]
[357394344,1744041049100,-500.0,0.00027671,7]
[357394345,1744041049110,-500.0,0.00027671,7]
[357394346,1744041049119,-500.0,0.00027671,7]
[357394347,1744041049129,-500.0,0.00027671,7]
[357394348,1744041049138,-500.0,0.00027671,7]
[357394349,1744041049148,-500.0,0.00027671,7]
[357394350,1744041049158,-500.0,0.00027671,7]
[357394351,1744041049168,-500.0,0.00027671,7]
[357394352,1744041049180,-500.0,0.00027671,7]
[357394353,1744041049189,-500.0,0.00027671,7]
[357394354,1744041049199,-500.0,0.00027671,7]
[357394355,1744041049209,-500.0,0.00027671,7]
[357394356,1744041049219,-500.0,0.00027671,7]
[357394357,1744041049228,-500.0,0.00027671,7]
[357394358,1744041049237,-500.0,0.00027671,7]
[357394359,1744041049247,-843.86,0.00027671,7]
[357394360,1744041049256,-500.0,0.00027671,7]
[357394361,1744041049266,-500.0,0.00027671,7]
[357394362,1744041049276,-500.0,0.00027671,7]
[357394363,1744041049285,-626.79,0.00027671,7]
[357394364,1744041049295,-500.0,0.00027671,7]
[357394365,1744041049305,-500.0,0.00027671,7]
[357394366,1744041049314,-500.0,0.00027671,7]
[357394367,1744041049324,-500.0,0.00027671,7]
[357394368,1744041049334,-500.0,0.00027671,7]
[357394369,1744041049343,-268.33603289,0.00027671,7]
[357394370,1744041049353,-500.0,0.00027671,7]
[357394371,1744041049363,-500.0,0.00027671,7]
[357394372,1744041049373,-500.0,0.00027671,7]
[357394373,1744041049383,-687.43,0.00027671,7]
[357394374,1744041049392,-500.0,0.00027671,7]
[357394375,1744041049402,-500.0,0.00027671,7]
[357394376,1744041049411,-1291.5,0.00027671,7]
[357394377,1744041049421,-505.7352489,0.00027671,7]
[357394378,1744041049433,-535.71,0.00027671,7]
[357394379,1744041049442,-500.0,0.00027671,7]
[357394380,1744041049452,-500.0,0.00027671,7]
[357394381,1744041049462,-500.0,0.00027671,7]
[357394382,1744041049471,-501.8712101,0.00027671,7]
[357394383,1744041049482,-500.0,0.00027671,7]
[357394384,1744041049492,-500.0,0.00027671,7]
[357394385,1744041049502,-500.0,0.00027671,7]
[357394386,1744041049512,-500.0,0.00027671,7]
[357394387,1744041049522,-500.0,0.00027671,7]
[357394388,1744041049536,-500.0,0.00027671,7]
[357394389,1744041049546,-500.0,0.00027671,7]
[357394390,1744041049556,-949.42,0.00027671,7]
[357394391,1744041049567,-500.0,0.00027671,7]
[357394392,1744041049576,-500.0,0.00027671,7]
[357394393,1744041049587,-500.0,0.00027671,7]
[357394394,1744041049596,-500.0,0.00027671,7]
[357394395,1744041049607,-526.87897735,0.00027671,7]
[357394396,1744041049618,-500.0,0.00027671,7]
[357394397,1744041049627,-500.0,0.00027671,7]
[357394398,1744041049637,-1006.7,0.00027671,7]
[357394399,1744041049646,-500.0,0.00027671,7]
[357394400,1744041049656,-500.0,0.00027671,7]
[357394401,1744041049666,-500.0,0.00027671,7]
[357394402,1744041049676,-500.0,0.00027671,7]
[357394403,1744041049685,-500.0,0.00027671,7]
[357394404,1744041049696,-500.0,0.00027671,7]
[357394405,1744041049705,-500.0,0.00027671,7]
[357394406,1744041049715,-500.0,0.00027671,7]
[357394407,1744041049724,-500.0,0.00027671,7]
[357394408,1744041049734,-500.0,0.00027671,7]
[357394409,1744041049744,-1554.49,0.00027671,7]
[357394410,1744041049754,-591.18,0.00027671,7]
[357394411,1744041049764,-500.0,0.00027671,7]
[357394412,1744041049773,-500.0,0.00027671,7]
[357394413,1744041049783,-1149.24,0.00027671,7]
[357394414,1744041049793,-500.0,0.00027671,7]
[357394415,1744041049802,-500.0,0.00027671,7]
[357394416,1744041049812,-1000.0,0.00027671,7]
[357394417,1744041049822,-500.0,0.00027671,7]
[357394418,1744041049832,-500.0,0.00027671,7]
[357394419,1744041049842,-500.0,0.00027671,7]
[357394420,1744041049851,-500.0,0.00027671,7]
[357394421,1744041049861,-500.0,0.00027671,7]
[357394422,1744041049870,-500.0,0.00027671,7]
[357394423,1744041049880,-500.0,0.00027671,7]
[357394424,1744041049890,-500.0,0.00027671,7]
[357394425,1744041049900,-500.0,0.00027671,7]
[357394426,1744041049909,-500.0,0.00027671,7]
[357394427,1744041049919,-500.0,0.00027671,7]
[357394428,1744041049929,-500.0,0.00027671,7]
[357394429,1744041049938,-500.0,0.00027671,7]
[357394430,1744041049949,-500.0,0.00027671,7]
[357394431,1744041049959,-500.0,0.00027671,7]
[357394432,1744041049968,-500.0,0.00027671,7]
[357394433,1744041049978,-2011.13,0.00027671,7]
[357394434,1744041049987,-308.7626116,0.00027671,7]
[357394435,1744041049997,-527.8779858,0.00027671,7]
[357394436,1744041050007,-595.79622551,0.00027671,7]
[357394437,1744041050017,-500.0,0.00027671,7]
[357394438,1744041050026,-542.24,0.00027671,7]
[357394439,1744041050036,-500.0,0.00027671,7]
[357394440,1744041050045,-500.0,0.00027671,7]
[357394441,1744041050055,-500.0,0.00027671,7]
[357394442,1744041050064,-921.11,0.00027671,7]
[357394443,1744041050074,-500.0,0.00027671,7]
[357394444,1744041050084,-500.0,0.00027671,7]
[357394445,1744041050094,-500.0,0.00027671,7]
[357394446,1744041050103,-500.0,0.00027671,7]
[357394447,1744041050114,-500.0,0.00027671,7]
[357394448,1744041050123,-791.43,0.00027671,7]
[357394449,1744041050133,-500.0,0.00027671,7]
[357394450,1744041050144,-662.68,0.00027671,7]
[357394451,1744041050155,-955.72,0.00027671,7]
[357394452,1744041050165,-500.0,0.00027671,7]
[357394453,1744041050176,-530.30041108,0.00027671,7]
[357394454,1744041050186,-500.0,0.00027671,7]
[357394455,1744041050196,-500.0,0.00027671,7]
[357394456,1744041050206,-957.6,0.00027671,7]
[357394457,1744041050215,-1965.48,0.00027671,7]
[357394458,1744041050225,-517.27134391,0.00027671,7]
[357394459,1744041050235,-500.0,0.00027671,7]
[357394460,1744041050245,-500.0,0.00027671,7]
[357394461,1744041050255,-2369.64,0.00027671,7]
[357394462,1744041050264,-500.0,0.00027671,7]
[357394463,1744041050274,-609.33939701,0.00027671,7]
[357394464,1744041050284,-500.0,0.00027671,7]
[357394465,1744041050293,-1223.05,0.00027671,7]
[357394466,1744041050303,-1966.8,0.00027671,7]
[357394467,1744041050312,-1804.35,0.00027671,7]
[357394468,1744041050327,-500.0,0.00027671,7]
[357394469,1744041050337,-500.0,0.00027671,7]
[357394470,1744041050346,-500.0,0.00027671,7]
[357394471,1744041050355,-1031.21,0.00027671,7]
[357394472,1744041050365,-430.23434151,0.00027671,7]
[357394473,1744041050375,-1307.14,0.00027671,7]
[357394474,1744041050384,-500.0,0.00027671,7]
[357394475,1744041050394,-2811.94,0.00027671,7]
[357394476,1744041050527,-500.0,0.00027671,7]
[357394477,1744041050566,-500.0,0.00027671,7]
[357394478,1744041050576,-500.0,0.00027671,7]
[357394479,1744041050586,-632.84,0.00027671,7]
[357394480,1744041050596,-500.0,0.00027671,7]
[357394481,1744041050607,-500.0,0.00027671,7]
[357394482,1744041050618,-666.25,0.00027671,7]
[357394483,1744041050627,-500.0,0.00027671,7]
[357394484,1744041050637,-593.99,0.00027671,7]
[357394485,1744041050647,-515.21076713,0.00027671,7]
[357394486,1744041050656,-1465.63,0.00027671,7]
[357394487,1744041050666,-956.64,0.00027671,7]
[357394488,1744041050676,-500.0,0.00027671,7]
[357394489,1744041050687,-500.0,0.00027671,7]
[357394490,1744041050697,-500.0,0.00027671,7]
[357394491,1744041050707,-500.0,0.00027671,7]
[357394492,1744041050718,-500.0,0.00027671,7]
[357394493,1744041050729,-1248.92,0.00027671,7]
[357394494,1744041050739,-689.16,0.00027671,7]
[357394495,1744041050749,-659.51,0.00027671,7]
[357394496,1744041050759,-500.0,0.00027671,7]
[357394497,1744041050768,-2902.89,0.00027671,7]
[357394498,1744041050778,-500.0,0.00027671,7]
[357394499,1744041050788,-667.22,0.00027671,7]
[357394500,1744041050798,-500.0,0.00027671,2]
[357394501,1744041050808,-500.0,0.00027671,7]
[357394502,1744041050818,-500.0,0.00027671,7]
[357394503,1744041050828,-900.99,0.00027671,7]
[357394504,1744041050838,-500.0,0.00027671,7]
[357394505,1744041050849,-500.0,0.00027671,7]
[357394506,1744041050859,-500.0,0.00027671,7]
[357394507,1744041050868,-500.0,0.00027671,7]
[357394508,1744041050878,-500.0,0.00027671,7]
[357394509,1744041050888,-500.0,0.00027671,7]
[357394510,1744041050898,-519.97944041,0.00027671,7]
[357394511,1744041050908,-500.0,0.00027671,7]
[357394512,1744041050918,-560.68,0.00027671,7]
[357394513,1744041050930,-661.25,0.00027671,7]
[357394514,1744041050940,-500.0,0.00027671,7]
[357394515,1744041050950,-662.28,0.00027671,7]
[357394516,1744041050961,-636.50317024,0.00027671,7]
[357394517,1744041050971,-500.0,0.00027671,7]
[357394518,1744041050981,-378.57416852,0.00027671,7]
[357394519,1744041050991,-500.0,0.00027671,7]
[357394520,1744041051001,-500.0,0.00027671,7]
[357394521,1744041051011,-742.01,0.00027671,7]
[357394522,1744041051022,-500.0,0.00027671,7]
[357394523,1744041051031,-172.54195872,0.00027671,7]
[357394524,1744041051041,-500.0,0.00027671,7]
[357394525,1744041051051,-500.0,0.00027671,7]
[357394526,1744041051061,-500.0,0.00027671,7]
[357394527,1744041051073,-3592.55,0.00027671,7]
[357394528,1744041051083,-668.2,0.00027671,7]
[357394529,1744041051092,-500.0,0.00027671,7]
[357394530,1744041051102,-500.0,0.00027671,7]
[357394531,1744041051112,-500.0,0.00027671,7]
[357394532,1744041051122,-500.0,0.00027671,7]
[357394533,1744041051132,-500.0,0.00027671,7]
[357394534,1744041051141,-834.99,0.00027671,7]
[357394535,1744041051151,-2672.57,0.00027671,7]
[357394536,1744041051161,-500.0,0.00027671,7]
[357394537,1744041051170,-500.0,0.00027671,7]
[357394538,1744041051183,-500.0,0.00027671,7]
[357394539,1744041051193,-954.11,0.00027671,7]
[357394540,1744041051203,-500.0,0.00027671,7]
[357394541,1744041051214,-500.0,0.00027671,7]
[357394542,1744041051224,-4041.27,0.00027671,7]
[357394543,1744041051234,-500.0,0.00027671,7]
[357394544,1744041051244,-1079.13,0.00027671,7]
[357394545,1744041051254,-500.0,0.00027671,7]
[357394546,1744041051264,-500.0,0.00027671,7]
[357394547,1744041051274,-500.0,0.00027671,7]
[357394548,1744041051284,-2708.36,0.00027671,7]
[357394549,1744041051293,-500.0,0.00027671,7]
[357394550,1744041051303,-500.0,0.00027671,7]
[357394551,1744041051313,-500.0,0.00027671,7]
[357394552,1744041051322,-500.0,0.00027671,7]
[357394553,1744041051332,-500.0,0.00027671,7]
[357394554,1744041051342,-500.0,0.00027671,7]
[357394555,1744041051352,-500.0,0.00027671,7]
[357394556,1744041051361,-500.0,0.00027671,7]
[357394557,1744041051371,-624.74,0.00027671,7]
[357394558,1744041051381,-620.5,0.00027671,7]
[357394559,1744041051390,-500.0,0.00027671,7]
[357394560,1744041051400,-542.2,0.00027671,7]
[357394561,1744041051410,-500.0,0.00027671,7]
[357394562,1744041051420,-500.0,0.00027671,7]
[357394563,1744041051433,-200.0,0.00027671,7]
[357394564,1744041051443,-500.0,0.00027671,7]
[357394565,1744041051453,-642.33,0.00027671,7]
[357394566,1744041051464,-500.0,0.00027671,7]
[357394567,1744041051474,-500.0,0.00027671,7]
[357394568,1744041051484,-573.65454895,0.00027671,7]
[357394569,1744041051494,-500.0,0.00027671,7]
[357394570,1744041051504,-677.48,0.00027671,7]
[357394571,1744041051514,-500.0,0.00027671,7]
[357394572,1744041051525,-917.16,0.00027671,7]
[357394573,1744041051539,-504.71682295,0.00027671,7]
[357394574,1744041051549,-1710.05,0.00027671,7]
[357394575,1744041051559,-2819.0,0.00027671,7]
[357394576,1744041051570,-307.42875492,0.00027671,7]
[357394577,1744041051580,-500.0,0.00027671,7]
[357394578,1744041051591,-593.7,0.00027671,7]
[357394579,1744041051603,-500.0,0.00027671,7]
[357394580,1744041051613,-500.0,0.00027671,7]
[357394581,1744041051624,-500.0,0.00027671,7]
[357394582,1744041051635,-2607.36,0.00027671,7]
[357394583,1744041051645,-500.0,0.00027671,7]
[357394584,1744041051655,-1813.25,0.00027671,7]
[357394585,1744041051666,-500.0,0.00027671,7]
[357394586,1744041051676,-500.0,0.00027671,7]
[357394587,1744041051696,-1037.37,0.00027671,7]
[357394588,1744041051707,-500.0,0.00027671,7]
[357394589,1744041051719,-500.0,0.00027671,7]
[357394590,1744041051730,-533.61160234,0.00027671,7]
[357394591,1744041051740,-2972.59,0.00027671,7]
[357394592,1744041051751,-500.0,0.00027671,7]
[357394593,1744041051760,-728.4,0.00027671,7]
[357394594,1744041051771,-500.0,0.00027671,7]
[357394595,1744041051781,-500.0,0.00027671,7]
[357394596,1744041051791,-500.0,0.00027671,7]
[357394597,1744041051801,-500.0,0.00027671,7]
[357394598,1744041051811,-500.0,0.00027671,7]
[357394599,1744041051821,-500.0,0.00027671,7]
[357394600,1744041051831,-500.0,0.00027671,7]
[357394601,1744041051841,-500.0,0.00027671,7]
[357394602,1744041051851,-2813.02,0.00027671,7]
[357394603,1744041051862,-500.0,0.00027671,7]
[357394604,1744041051872,-500.0,0.00027671,7]
[357394605,1744041051882,-1107.88,0.00027671,7]
[357394606,1744041051892,-500.0,0.00027671,7]
[357394607,1744041051901,-500.0,0.00027671,7]
[357394608,1744041051911,-540.7,0.00027671,7]
[357394609,1744041051921,-500.0,0.00027671,7]
[357394610,1744041051935,-500.0,0.00027671,7]
[357394611,1744041051945,-500.0,0.00027671,7]
[357394612,1744041051955,-500.0,0.00027671,7]
[357394613,1744041051965,-500.0,0.00027671,7]
[357394614,1744041051975,-500.0,0.00027671,7]
[357394615,1744041051986,-500.0,0.00027671,7]
[357394616,1744041051996,-500.0,0.00027671,7]
[357394617,1744041052007,-390.74748547,0.00027671,7]
[357394618,1744041052017,-529.51,0.00027671,7]
[357394619,1744041052027,-466.65148207,0.00027671,7]
[357394620,1744041052038,-500.0,0.00027671,7]
[357394621,1744041052048,-1328.51,0.00027671,7]
[357394622,1744041052058,-500.0,0.00027671,7]
[357394623,1744041052068,-500.0,0.00027671,7]
[357394624,1744041052082,-500.0,0.00027671,7]
[357394625,1744041052091,-500.0,0.00027671,7]
[357394626,1744041052101,-647.0,0.00027671,7]
[357394627,1744041052111,-474.34403763,0.00027671,7]
[357394628,1744041052121,-500.0,0.00027671,7]
[357394629,1744041052131,-1859.53,0.00027671,7]
[357394630,1744041052140,-500.0,0.00027671,7]
[357394631,1744041052150,-500.0,0.00027671,7]
[357394632,1744041052160,-546.27,0.00027671,7]
[357394633,1744041052170,-500.0,0.00027671,7]
[357394634,1744041052181,-500.0,0.00027671,7]
[357394635,1744041052191,-500.0,0.00027671,7]
[357394636,1744041052201,-1259.13,0.00027671,7]
[357394637,1744041052210,-500.0,0.00027671,7]
[357394638,1744041052220,-500.0,0.00027671,7]
[357394639,1744041052229,-1747.04,0.00027671,7]
[357394640,1744041052239,-500.0,0.00027671,7]
[357394641,1744041052250,-500.0,0.00027671,7]
[357394642,1744041052260,-558.60480821,0.00027671,7]
[357394643,1744041052270,-500.0,0.00027671,7]
[357394644,1744041052281,-500.0,0.00027671,7]
[357394645,1744041052291,-500.0,0.00027671,7]
[357394646,1744041052301,-500.0,0.00027671,7]
[357394647,1744041052312,-500.0,0.00027671,7]
[357394648,1744041052322,-500.0,0.00027671,7]
[357394649,1744041052332,-611.62,0.00027671,7]
[357394650,1744041052342,-759.67,0.00027671,7]
[357394651,1744041052352,-500.0,0.00027671,7]
[357394652,1744041052362,-649.43,0.00027671,7]
[357394653,1744041052372,-500.0,0.00027671,7]
[357394654,1744041052382,-500.0,0.00027671,7]
[357394655,1744041052392,-500.0,0.00027671,7]
[357394656,1744041052402,-500.0,0.00027671,7]
[357394657,1744041052412,-1087.99,0.00027671,7]
[357394658,1744041052422,-914.61,0.00027671,7]
[357394659,1744041052436,-971.59,0.00027671,7]
[357394660,1744041052446,-500.0,0.00027671,7]
[357394661,1744041052456,-500.0,0.00027671,7]
[357394662,1744041052467,-500.0,0.00027671,7]
[357394663,1744041052477,-500.0,0.00027671,7]
[357394664,1744041052488,-500.0,0.00027673,5]
[357394665,1744041052498,-500.0,0.00027673,5]
[357394666,1744041052508,-500.0,0.00027673,5]
[357394667,1744041052520,-466.77290927,0.00027673,5]
[357394668,1744041052531,-778.61908912,0.00027696,2]
[357394669,1744041052542,-409.815075,0.00027793,2]
[357394670,1744041052551,-778.61908912,0.00027896,2]
[357394671,1744041052561,-2457.44892261,0.000279,7]
[357394672,1744041052571,-10614.8833164,0.00027917,2]
[357394673,1744041052581,-16108.05394577,0.00027927,2]
[357394674,1744041052592,-5061.29294312,0.00027935,3]
[357394675,1744041052602,-21525.90467882,0.00027935,2]
[357394676,1744041052614,-53074.416582,0.00027935,2]
[357394677,1744041052626,-151.0,0.00027935,7]
[357394678,1744041052636,-171.20593,0.00027935,7]
[357394679,1744041052646,-160.0,0.00027944,10]
[357394680,1744041052656,-2251.64,0.00027944,7]
[357394681,1744041052666,-5331.74,0.00027944,7]
[357394682,1744041052676,-500.0,0.00027945,7]
[357394683,1744041052691,-500.0,0.00027945,7]
[357394684,1744041052701,-500.0,0.00027945,7]
[357394685,1744041052711,-266.50037197,0.00027945,7]
[357394686,1744041052721,-500.0,0.00027945,7]
[357394687,1744041052731,-500.0,0.00027945,7]
[357394688,1744041052741,-500.0,0.00027945,7]
[357394689,1744041052751,-344.59941579,0.00027945,7]
[357394690,1744041053376,-320.17165751,0.00027397,60]
[357394691,1744041053817,-500.0,0.00027397,7]
[357394692,1744041053827,-114.02934727,0.00027397,7]
[357394693,1744041053839,-385.97065273,0.00027397,7]
[357394694,1744041053849,-31.10464399,0.00027397,7]
[357394695,1744041053861,-488.50535601,0.00027397,7]
[357394696,1744041053871,-85.17578418,0.00027397,60]
[357394697,1744041053881,-500.0,0.00027671,7]
[357394698,1744041053891,-47.5596227,0.00027935,7]
[357394699,1744041053903,-103.4403773,0.00027935,7]
[357394700,1744041053914,-155.40058421,0.00027945,7]
[357394701,1744041053924,-500.0,0.00027945,7]
[357394702,1744041053936,-500.0,0.00027945,7]
[357394703,1744041053946,-500.0,0.00027945,7]
[357394704,1744041053957,-500.0,0.00027945,7]
[357394705,1744041053967,-500.0,0.00027945,7]
[357394706,1744041053976,-512.11845814,0.00027945,7]
[357394707,1744041053987,-500.0,0.00027945,7]
[357394708,1744041053997,-584.72652067,0.00027945,7]
[357394709,1744041054009,-19.92410732,0.00027945,7]
[357394710,1744041054020,-515.81,0.00027945,7]
[357394711,1744041054030,-500.0,0.00027945,7]
[357394712,1744041054040,-500.0,0.00027945,7]
[357394713,1744041054050,-500.0,0.00027945,7]
[357394714,1744041054060,-500.0,0.00027945,7]
[357394715,1744041054070,-575.93,0.00027945,7]
[357394716,1744041054080,-500.0,0.00027945,7]
[357394717,1744041054090,-500.0,0.00027945,7]
[357394718,1744041054100,-500.0,0.00027945,7]
[357394719,1744041054110,-500.0,0.00027945,7]
[357394720,1744041054120,-249.63658639,0.00027945,7]
[357394721,1744041054130,-500.0,0.00027945,7]
[357394722,1744041054140,-227.91813566,0.00027945,7]
[357394723,1744041054151,-500.0,0.00027945,7]
[357394724,1744041054160,-500.0,0.00027945,7]
[357394725,1744041054170,-500.0,0.00027945,7]
[357394726,1744041054183,-500.0,0.00027945,7]
[357394727,1744041054194,-500.0,0.00027945,7]
[357394728,1744041054204,-500.0,0.00027945,7]
[357394729,1744041054214,-531.84871243,0.00027945,7]
[357394730,1744041054224,-647.66000231,0.00027945,7]
[357394731,1744041054234,-500.0,0.00027945,7]
[357394732,1744041054244,-500.0,0.00027945,7]
[357394733,1744041054254,-500.0,0.00027945,7]
[357394734,1744041054264,-500.0,0.00027945,7]
[357394735,1744041054273,-736.42,0.00027945,7]
[357394736,1744041054283,-500.0,0.00027945,7]
[357394737,1744041054292,-504.35713724,0.00027945,5]
[357394738,1744041054302,-500.0,0.00027945,7]
[357394739,1744041054312,-1531.02,0.00027945,7]
[357394740,1744041054321,-500.0,0.00027945,7]
[357394741,1744041054331,-500.0,0.00027945,7]
[357394742,1744041054341,-614.68,0.00027945,7]
[357394743,1744041054350,-500.0,0.00027945,7]
[357394744,1744041054360,-500.0,0.00027945,7]
[357394745,1744041054370,-500.0,0.00027945,7]
[357394746,1744041054380,-500.0,0.00027945,7]
[357394747,1744041054390,-505.26934184,0.00027945,7]
[357394748,1744041054400,-500.0,0.00027945,7]
[357394749,1744041054410,-1181.76,0.00027945,7]
[357394750,1744041054421,-500.0,0.00027945,7]
[357394751,1744041054431,-500.0,0.00027945,7]
[357394752,1744041054442,-500.0,0.00027945,7]
[357394753,1744041054452,-500.0,0.00027945,7]
[357394754,1744041054463,-31.31623467,0.00027945,7]
[357394755,1744041054478,-276.90174932,0.00027945,7]
[357394756,1744041054488,-500.0,0.00027945,7]
[357394757,1744041054498,-500.0,0.00027945,7]
[357394758,1744041054508,-500.0,0.00027945,7]
[357394759,1744041054521,-500.0,0.00027945,7]
[357394760,1744041054532,-577.24,0.00027945,7]
[357394761,1744041054542,-500.0,0.00027945,7]
[357394762,1744041054552,-701.75,0.00027945,7]
[357394763,1744041054562,-500.0,0.00027945,7]
[357394764,1744041054574,-500.0,0.00027945,7]
[357394765,1744041054584,-500.0,0.00027945,7]
[357394766,1744041054593,-500.0,0.00027945,7]
[357394767,1744041054604,-501.97001727,0.00027945,7]
[357394768,1744041054614,-1005.2,0.00027945,7]
[357394769,1744041054624,-507.98,0.00027945,7]
[357394770,1744041054634,-500.0,0.00027945,7]
[357394771,1744041054644,-500.0,0.00027945,7]
[357394772,1744041054654,-500.0,0.00027945,7]
[357394773,1744041054664,-500.0,0.00027945,7]
[357394774,1744041054674,-573.82,0.00027945,7]
[357394775,1744041054685,-625.65,0.00027945,7]
[357394776,1744041054695,-839.26,0.00027945,7]
[357394777,1744041054705,-500.0,0.00027945,7]
[357394778,1744041054715,-500.0,0.00027945,7]
[357394779,1744041054726,-500.0,0.00027945,7]
[357394780,1744041054737,-566.26,0.00027945,7]
[357394781,1744041054747,-500.0,0.00027945,7]
[357394782,1744041054756,-500.0,0.00027945,7]
[357394783,1744041054766,-500.0,0.00027945,7]
[357394784,1744041054775,-808.89,0.00027945,7]
[357394785,1744041054785,-500.0,0.00027945,7]
[357394786,1744041054795,-500.0,0.00027945,7]
[357394787,1744041054805,-917.27,0.00027945,7]